[Event "Late-Titled-Tuesday-Blitz-September-19-2023"]
[Site "Chess.com"]
[Date "2023.09.19"]
[Round "6"]
[White "tteshan"]
[Black "GlavkonVVS"]
[Result "0-1"]
[WhiteElo "2506"]
[BlackElo "2607"]
[TimeControl "180+1"]
[EndTime "15:02:13 PDT"]
[Termination "GlavkonVVS won by resignation"]

1. e4 {[%clk 0:03:00.9]} 1... Nf6 {[%clk 0:02:55.5]} 2. e5 {[%clk 0:03:00.2]}
2... Nd5 {[%clk 0:02:55.6]} 3. c4 {[%clk 0:03:00.9]} 3... Nb6 {[%clk 0:02:55.7]}
4. d4 {[%clk 0:03:01.6]} 4... d6 {[%clk 0:02:56.2]} 5. exd6 {[%clk 0:03:02.5]}
5... cxd6 {[%clk 0:02:56.8]} 6. Nf3 {[%clk 0:03:02.8]} 6... Bg4 {[%clk
0:02:56.3]} 7. h3 {[%clk 0:03:02.6]} 7... Bxf3 {[%clk 0:02:56.4]} 8. Qxf3 {[%clk
0:03:03.1]} 8... Nc6 {[%clk 0:02:56.9]} 9. Be3 {[%clk 0:03:00.2]} 9... g6 {[%clk
0:02:57.4]} 10. Nc3 {[%clk 0:02:55.8]} 10... Bg7 {[%clk 0:02:57.7]} 11. Qd1
{[%clk 0:02:56.4]} 11... O-O {[%clk 0:02:56.9]} 12. Be2 {[%clk 0:02:56.4]} 12...
e5 {[%clk 0:02:57.4]} 13. d5 {[%clk 0:02:55.9]} 13... Nd4 {[%clk 0:02:55.3]} 14.
Bxd4 {[%clk 0:02:52.8]} 14... exd4 {[%clk 0:02:55.2]} 15. Nb5 {[%clk 0:02:51.1]}
15... a6 {[%clk 0:02:35.4]} 16. Nxd4 {[%clk 0:02:46.9]} 16... Re8 {[%clk
0:02:22.8]} 17. Qd3 {[%clk 0:02:18.3]} 17... Qf6 {[%clk 0:01:50.9]} 18. Nc2
{[%clk 0:02:06.6]} 18... Qxb2 {[%clk 0:01:43.3]} 19. O-O {[%clk 0:02:02.3]}
19... Na4 {[%clk 0:01:08.2]} 20. Rab1 {[%clk 0:01:45.9]} 20... Qxa2 {[%clk
0:01:04.4]} 21. Rxb7 {[%clk 0:01:28.1]} 21... Nc5 {[%clk 0:01:03.8]} 0-1

[Event "Late-Titled-Tuesday-Blitz-September-19-2023"]
[Site "Chess.com"]
[Date "2023.09.19"]
[Round "6"]
[White "Sjakkerntobi"]
[Black "queen_iryna"]
[Result "1-0"]
[WhiteElo "2518"]
[BlackElo "2374"]
[TimeControl "180+1"]
[EndTime "15:02:15 PDT"]
[Termination "Sjakkerntobi won by checkmate"]

1. f4 {[%clk 0:02:51]} 1... d6 {[%clk 0:03:00.9]} 2. Nf3 {[%clk 0:02:51.1]} 2...
g6 {[%clk 0:03:00.8]} 3. g3 {[%clk 0:02:51.3]} 3... Bg7 {[%clk 0:03:01.6]} 4.
Bg2 {[%clk 0:02:52.2]} 4... c5 {[%clk 0:03:01]} 5. O-O {[%clk 0:02:52.5]} 5...
Nc6 {[%clk 0:03:01.8]} 6. Nc3 {[%clk 0:02:53.1]} 6... Nf6 {[%clk 0:03:00.5]} 7.
d3 {[%clk 0:02:53.3]} 7... O-O {[%clk 0:03:00.3]} 8. e4 {[%clk 0:02:54]} 8...
Rb8 {[%clk 0:02:57.5]} 9. h3 {[%clk 0:02:54]} 9... b5 {[%clk 0:02:50.1]} 10. g4
{[%clk 0:02:54.2]} 10... b4 {[%clk 0:02:48.7]} 11. Ne2 {[%clk 0:02:54.6]} 11...
a5 {[%clk 0:02:46.8]} 12. Qe1 {[%clk 0:02:54.5]} 12... Ba6 {[%clk 0:02:45.4]}
13. Qg3 {[%clk 0:02:53]} 13... c4 {[%clk 0:02:42]} 14. Ne1 {[%clk 0:02:51.7]}
14... Nd7 {[%clk 0:02:16.1]} 15. h4 {[%clk 0:02:50.1]} 15... cxd3 {[%clk
0:02:04.3]} 16. cxd3 {[%clk 0:02:49.5]} 16... Nd4 {[%clk 0:02:02]} 17. Nxd4
{[%clk 0:02:49.3]} 17... Bxd4+ {[%clk 0:02:01.1]} 18. Kh1 {[%clk 0:02:49.8]}
18... Nc5 {[%clk 0:01:54.6]} 19. h5 {[%clk 0:02:44.3]} 19... Kg7 {[%clk
0:01:49.8]} 20. Nf3 {[%clk 0:02:41.1]} 20... e5 {[%clk 0:01:43.8]} 21. Nxd4
{[%clk 0:02:38.3]} 21... exd4 {[%clk 0:01:43]} 22. f5 {[%clk 0:02:35.5]} 22...
Bxd3 {[%clk 0:01:39.5]} 23. hxg6 {[%clk 0:01:08]} 23... hxg6 {[%clk 0:01:37.9]}
24. Bh6+ {[%clk 0:01:02.7]} 24... Kxh6 {[%clk 0:01:25.9]} 25. f6 {[%clk
0:01:01.8]} 25... Rh8 {[%clk 0:01:13.6]} 26. Qh4# {[%clk 0:00:59.8]} 1-0

[Event "Late-Titled-Tuesday-Blitz-September-19-2023"]
[Site "Chess.com"]
[Date "2023.09.19"]
[Round "6"]
[White "Beca95"]
[Black "GoltsevDmitry2000"]
[Result "1-0"]
[WhiteElo "2859"]
[BlackElo "2654"]
[TimeControl "180+1"]
[EndTime "15:02:21 PDT"]
[Termination "Beca95 won by resignation"]

1. c4 {[%clk 0:03:00.9]} 1... Nf6 {[%clk 0:02:55.6]} 2. Nc3 {[%clk 0:03:00.4]}
2... c5 {[%clk 0:02:52.2]} 3. Nf3 {[%clk 0:02:59.8]} 3... Nc6 {[%clk 0:02:52.7]}
4. d4 {[%clk 0:02:59.1]} 4... cxd4 {[%clk 0:02:52.5]} 5. Nxd4 {[%clk 0:03:00]}
5... g6 {[%clk 0:02:52.5]} 6. e4 {[%clk 0:02:59.7]} 6... d6 {[%clk 0:02:50.9]}
7. Be3 {[%clk 0:03:00.1]} 7... Bg7 {[%clk 0:02:51]} 8. Be2 {[%clk 0:02:58.2]}
8... O-O {[%clk 0:02:51.2]} 9. O-O {[%clk 0:02:56.4]} 9... a6 {[%clk 0:02:48.5]}
10. h3 {[%clk 0:02:56.1]} 10... Nd7 {[%clk 0:02:39.8]} 11. Qd2 {[%clk
0:02:53.7]} 11... Qa5 {[%clk 0:02:25.3]} 12. Rad1 {[%clk 0:02:48.7]} 12... Nxd4
{[%clk 0:01:37.7]} 13. Bxd4 {[%clk 0:02:45.2]} 13... Bxd4 {[%clk 0:01:38.6]} 14.
Qxd4 {[%clk 0:02:44.3]} 14... Nf6 {[%clk 0:01:39.1]} 15. f4 {[%clk 0:02:39.3]}
15... Be6 {[%clk 0:01:19.4]} 16. f5 {[%clk 0:02:21.4]} 16... gxf5 {[%clk
0:01:18.2]} 17. exf5 {[%clk 0:02:22.3]} 17... Bd7 {[%clk 0:00:56]} 18. g4 {[%clk
0:02:11.9]} 18... Rfc8 {[%clk 0:00:38.4]} 19. g5 {[%clk 0:02:09.8]} 19... Ne8
{[%clk 0:00:33.3]} 20. Nd5 {[%clk 0:02:09.5]} 20... Qd8 {[%clk 0:00:31]} 21. f6
{[%clk 0:02:04.8]} 21... e5 {[%clk 0:00:23.8]} 22. Qh4 {[%clk 0:02:01.7]} 22...
e4 {[%clk 0:00:10.5]} 23. Ne7+ {[%clk 0:01:58.4]} 23... Kh8 {[%clk 0:00:10.2]}
24. Rf4 {[%clk 0:01:57.3]} 24... Qb6+ {[%clk 0:00:07.1]} 25. Kf1 {[%clk
0:01:56]} 1-0

[Event "Late-Titled-Tuesday-Blitz-September-19-2023"]
[Site "Chess.com"]
[Date "2023.09.19"]
[Round "6"]
[White "rikchessmx"]
[Black "KVAIDAN"]
[Result "1-0"]
[WhiteElo "2341"]
[BlackElo "2248"]
[TimeControl "180+1"]
[EndTime "15:02:25 PDT"]
[Termination "rikchessmx won by resignation"]

1. e4 {[%clk 0:03:00.9]} 1... e5 {[%clk 0:02:32.5]} 2. Nf3 {[%clk 0:02:59.9]}
2... d5 {[%clk 0:02:31.8]} 3. Nc3 {[%clk 0:02:54.8]} 3... dxe4 {[%clk
0:02:27.7]} 4. Nxe4 {[%clk 0:02:54.5]} 4... f5 {[%clk 0:02:27.6]} 5. Ng3 {[%clk
0:02:54.5]} 5... e4 {[%clk 0:02:26.9]} 6. Qe2 {[%clk 0:02:51.8]} 6... Nf6 {[%clk
0:02:26.6]} 7. d3 {[%clk 0:02:49.6]} 7... Bb4+ {[%clk 0:02:26.7]} 8. c3 {[%clk
0:02:49.4]} 8... O-O {[%clk 0:02:26.8]} 9. dxe4 {[%clk 0:02:39.4]} 9... fxe4
{[%clk 0:02:16.4]} 10. Ng5 {[%clk 0:02:34]} 10... Bd6 {[%clk 0:02:08.7]} 11.
Qc4+ {[%clk 0:02:31.9]} 11... Kh8 {[%clk 0:02:07.9]} 12. Nf7+ {[%clk 0:02:31.9]}
12... Rxf7 {[%clk 0:02:08.3]} 13. Qxf7 {[%clk 0:02:32.7]} 13... Nc6 {[%clk
0:02:08]} 14. Bg5 {[%clk 0:02:31.7]} 14... Be5 {[%clk 0:02:06.5]} 15. Nxe4
{[%clk 0:02:25.1]} 15... Bf5 {[%clk 0:01:53.5]} 16. Nxf6 {[%clk 0:02:24.1]}
16... gxf6 {[%clk 0:01:52.4]} 17. Be3 {[%clk 0:02:06.7]} 17... Qd6 {[%clk
0:01:47.8]} 18. Be2 {[%clk 0:01:58.5]} 18... Rf8 {[%clk 0:01:47.6]} 19. Qh5
{[%clk 0:01:55.2]} 19... Bg6 {[%clk 0:01:45.3]} 20. Qh3 {[%clk 0:01:55]} 20...
f5 {[%clk 0:01:44.1]} 21. Rd1 {[%clk 0:01:50.5]} 21... Qf6 {[%clk 0:01:43.8]}
22. f4 {[%clk 0:01:46.7]} 22... Bd6 {[%clk 0:01:40]} 23. O-O {[%clk 0:01:44.6]}
23... Re8 {[%clk 0:01:40.3]} 24. Bb5 {[%clk 0:01:33.3]} 24... Bf8 {[%clk
0:01:33.1]} 25. Bxc6 {[%clk 0:01:30]} 25... Qxc6 {[%clk 0:01:32.3]} 26. Bd4+
{[%clk 0:01:30.1]} 26... Kg8 {[%clk 0:01:32.5]} 27. Qf3 {[%clk 0:01:28.6]} 27...
Re4 {[%clk 0:01:31.2]} 28. Rde1 {[%clk 0:01:26.6]} 28... b6 {[%clk 0:01:29.7]}
29. Rxe4 {[%clk 0:01:25.8]} 29... fxe4 {[%clk 0:01:30.1]} 30. Qg4 {[%clk
0:01:25.6]} 30... Qd5 {[%clk 0:01:29.3]} 31. f5 {[%clk 0:01:25.3]} 31... Qd7
{[%clk 0:01:27.6]} 32. Qxe4 {[%clk 0:01:23.6]} 32... Bf7 {[%clk 0:01:26.6]} 33.
Qe5 {[%clk 0:01:23.7]} 33... Qxd4+ {[%clk 0:01:18.8]} 34. cxd4 {[%clk
0:01:22.7]} 34... Bd6 {[%clk 0:01:19.7]} 35. Qf6 {[%clk 0:01:18.1]} 35... Bc4
{[%clk 0:01:18.5]} 36. b3 {[%clk 0:01:16.3]} 1-0

[Event "Late-Titled-Tuesday-Blitz-September-19-2023"]
[Site "Chess.com"]
[Date "2023.09.19"]
[Round "6"]
[White "maurovargas01"]
[Black "tomobeast"]
[Result "1-0"]
[WhiteElo "1883"]
[BlackElo "2215"]
[TimeControl "180+1"]
[EndTime "15:02:26 PDT"]
[Termination "maurovargas01 won by resignation"]

1. e4 {[%clk 0:02:38.9]} 1... c5 {[%clk 0:02:49.1]} 2. Nc3 {[%clk 0:02:38.1]}
2... a6 {[%clk 0:02:47.9]} 3. f4 {[%clk 0:02:39]} 3... b5 {[%clk 0:02:48]} 4.
Nf3 {[%clk 0:02:39.9]} 4... Bb7 {[%clk 0:02:48]} 5. Nd5 {[%clk 0:02:39]} 5... e6
{[%clk 0:02:45.2]} 6. Ne3 {[%clk 0:02:32.6]} 6... Bxe4 {[%clk 0:02:32.6]} 7. d3
{[%clk 0:02:31.4]} 7... Bb7 {[%clk 0:02:32.1]} 8. Ne5 {[%clk 0:02:28.7]} 8...
Nf6 {[%clk 0:02:32.1]} 9. g4 {[%clk 0:02:26.7]} 9... d6 {[%clk 0:02:32.4]} 10.
Nf3 {[%clk 0:02:23.4]} 10... Be7 {[%clk 0:02:28.4]} 11. g5 {[%clk 0:02:23.2]}
11... Nd5 {[%clk 0:02:28.6]} 12. Ng4 {[%clk 0:02:20.2]} 12... Nc6 {[%clk
0:02:16.2]} 13. Bg2 {[%clk 0:02:18.6]} 13... Rc8 {[%clk 0:02:13.7]} 14. Bd2
{[%clk 0:02:18.3]} 14... Nd4 {[%clk 0:02:09.8]} 15. O-O {[%clk 0:02:17.2]} 15...
Nxf3+ {[%clk 0:02:05.1]} 16. Bxf3 {[%clk 0:02:15.9]} 16... e5 {[%clk 0:01:46.3]}
17. c4 {[%clk 0:02:13.4]} 17... exf4 {[%clk 0:01:32.5]} 18. Bxd5 {[%clk
0:02:06.6]} 18... Bxd5 {[%clk 0:01:32.2]} 19. cxd5 {[%clk 0:02:06.5]} 19... Bxg5
{[%clk 0:01:31.6]} 20. Re1+ {[%clk 0:01:55.4]} 20... Kf8 {[%clk 0:01:28.7]} 21.
Qf3 {[%clk 0:01:36.2]} 21... f5 {[%clk 0:01:27]} 22. Nf2 {[%clk 0:01:22.2]}
22... Kf7 {[%clk 0:01:25.7]} 23. Bxf4 {[%clk 0:01:21.5]} 23... Bxf4 {[%clk
0:01:24.9]} 24. Qxf4 {[%clk 0:01:21.1]} 24... g6 {[%clk 0:01:20.7]} 25. Ne4
{[%clk 0:01:18.5]} 25... Re8 {[%clk 0:01:16.8]} 26. Nxd6+ {[%clk 0:01:15.6]}
26... Kg7 {[%clk 0:01:14.9]} 27. Nxe8+ {[%clk 0:01:12.1]} 27... Kf8 {[%clk
0:01:09.8]} 28. Qh6+ {[%clk 0:01:04]} 28... Kf7 {[%clk 0:01:09.2]} 29. Qxh7+
{[%clk 0:01:02.8]} 1-0

[Event "Late-Titled-Tuesday-Blitz-September-19-2023"]
[Site "Chess.com"]
[Date "2023.09.19"]
[Round "6"]
[White "Defenstrator"]
[Black "JG-17"]
[Result "0-1"]
[WhiteElo "2339"]
[BlackElo "2503"]
[TimeControl "180+1"]
[EndTime "15:02:32 PDT"]
[Termination "JG-17 won by checkmate"]

1. g4 {[%clk 0:02:58.1]} 1... d5 {[%clk 0:02:59.2]} 2. f3 {[%clk 0:02:54.1]}
2... e5 {[%clk 0:02:57.9]} 3. h4 {[%clk 0:02:53.1]} 3... Be7 {[%clk 0:02:55.6]}
4. g5 {[%clk 0:02:34.1]} 4... h6 {[%clk 0:02:55.3]} 5. d4 {[%clk 0:02:31]} 5...
hxg5 {[%clk 0:02:45.4]} 6. dxe5 {[%clk 0:02:29.1]} 6... gxh4 {[%clk 0:02:42.1]}
7. Bh3 {[%clk 0:02:08]} 7... Nc6 {[%clk 0:02:30.7]} 8. f4 {[%clk 0:01:58.3]}
8... d4 {[%clk 0:02:23.7]} 9. Nf3 {[%clk 0:01:54.1]} 9... Bxh3 {[%clk
0:02:10.6]} 10. Rxh3 {[%clk 0:01:54.4]} 10... Qd7 {[%clk 0:02:08.5]} 11. Rh1
{[%clk 0:01:51.1]} 11... h3 {[%clk 0:02:03.2]} 12. c3 {[%clk 0:01:43.8]} 12...
O-O-O {[%clk 0:01:44.4]} 13. cxd4 {[%clk 0:01:39.6]} 13... Nxd4 {[%clk
0:01:34.7]} 14. Qxd4 {[%clk 0:01:36.3]} 14... Bh4+ {[%clk 0:01:25.2]} 15. Kf1
{[%clk 0:01:23.6]} 15... Qg4 {[%clk 0:01:25.3]} 16. Rg1 {[%clk 0:00:53.2]} 16...
Rxd4 {[%clk 0:01:24.6]} 17. Nxd4 {[%clk 0:00:48.2]} 17... Qd7 {[%clk 0:01:06.6]}
18. Be3 {[%clk 0:00:35.4]} 18... h2 {[%clk 0:01:06.8]} 19. Rh1 {[%clk
0:00:32.9]} 19... Qh3# {[%clk 0:01:07.3]} 0-1

[Event "Late-Titled-Tuesday-Blitz-September-19-2023"]
[Site "Chess.com"]
[Date "2023.09.19"]
[Round "6"]
[White "Giorno"]
[Black "Heinza9"]
[Result "1-0"]
[WhiteElo "2473"]
[BlackElo "2305"]
[TimeControl "180+1"]
[EndTime "15:02:47 PDT"]
[Termination "Giorno won by resignation"]

1. Nf3 {[%clk 0:03:00.9]} 1... f5 {[%clk 0:02:58.8]} 2. d4 {[%clk 0:02:57]} 2...
Nf6 {[%clk 0:02:57.5]} 3. Bf4 {[%clk 0:02:57.2]} 3... g6 {[%clk 0:02:55.8]} 4.
e3 {[%clk 0:02:56.5]} 4... Bg7 {[%clk 0:02:56]} 5. c4 {[%clk 0:02:52.7]} 5...
O-O {[%clk 0:02:55.6]} 6. Nc3 {[%clk 0:02:53.4]} 6... d6 {[%clk 0:02:55.3]} 7.
d5 {[%clk 0:02:52]} 7... e5 {[%clk 0:02:50.5]} 8. dxe6 {[%clk 0:02:51.4]} 8...
Bxe6 {[%clk 0:02:50.7]} 9. Be2 {[%clk 0:02:45.1]} 9... h6 {[%clk 0:02:49.3]} 10.
h3 {[%clk 0:02:39]} 10... Nc6 {[%clk 0:02:48.3]} 11. O-O {[%clk 0:02:31.5]}
11... b6 {[%clk 0:02:34.9]} 12. Nd4 {[%clk 0:02:30]} 12... Nxd4 {[%clk
0:02:33.7]} 13. exd4 {[%clk 0:02:30.9]} 13... Ne4 {[%clk 0:02:28.2]} 14. Nxe4
{[%clk 0:02:25.5]} 14... fxe4 {[%clk 0:02:28.3]} 15. Qd2 {[%clk 0:02:24.9]}
15... g5 {[%clk 0:02:19.4]} 16. Be3 {[%clk 0:02:22.1]} 16... d5 {[%clk
0:02:12.6]} 17. b3 {[%clk 0:02:11.6]} 17... c6 {[%clk 0:02:11.2]} 18. Rad1
{[%clk 0:02:07.3]} 18... Qd7 {[%clk 0:02:10.5]} 19. f4 {[%clk 0:02:04.4]} 19...
exf3 {[%clk 0:02:06.6]} 20. Bxf3 {[%clk 0:02:02.7]} 20... Rae8 {[%clk
0:02:05.8]} 21. Bh5 {[%clk 0:02:01.1]} 21... Rxf1+ {[%clk 0:02:01.5]} 22. Rxf1
{[%clk 0:02:02]} 22... Rf8 {[%clk 0:02:01.6]} 23. Rxf8+ {[%clk 0:02:00.8]} 23...
Bxf8 {[%clk 0:02:00.2]} 24. c5 {[%clk 0:01:59.4]} 24... bxc5 {[%clk 0:01:59]}
25. dxc5 {[%clk 0:02:00.3]} 25... Bg7 {[%clk 0:01:57.7]} 26. Bd4 {[%clk
0:01:59.9]} 26... Bxd4+ {[%clk 0:01:42.2]} 27. Qxd4 {[%clk 0:02:00.8]} 27... Qg7
{[%clk 0:01:42.4]} 28. Qxg7+ {[%clk 0:01:51.8]} 28... Kxg7 {[%clk 0:01:41.9]}
29. Be8 {[%clk 0:01:52.7]} 29... Kf6 {[%clk 0:01:39.3]} 30. Bxc6 {[%clk
0:01:48.7]} 30... Ke5 {[%clk 0:01:39.4]} 31. Kf2 {[%clk 0:01:47.6]} 31... a5
{[%clk 0:01:32.5]} 32. Bb7 {[%clk 0:01:42.8]} 32... d4 {[%clk 0:01:31.2]} 33.
Ke2 {[%clk 0:01:39.8]} 33... h5 {[%clk 0:01:27.5]} 34. Kd2 {[%clk 0:01:31.8]}
34... g4 {[%clk 0:01:17.7]} 35. hxg4 {[%clk 0:01:30.8]} 35... hxg4 {[%clk
0:01:16.8]} 36. g3 {[%clk 0:01:23.6]} 36... Bf5 {[%clk 0:01:13.8]} 37. a3 {[%clk
0:01:21.8]} 37... Be6 {[%clk 0:00:55.6]} 38. b4 {[%clk 0:01:21.4]} 38... axb4
{[%clk 0:00:56]} 39. axb4 {[%clk 0:01:22.1]} 39... Bd5 {[%clk 0:00:54.8]} 40.
Bxd5 {[%clk 0:01:20.6]} 40... Kxd5 {[%clk 0:00:55.1]} 41. Kd3 {[%clk 0:01:21.2]}
1-0

[Event "Late-Titled-Tuesday-Blitz-September-19-2023"]
[Site "Chess.com"]
[Date "2023.09.19"]
[Round "6"]
[White "Hrant_ChessMood"]
[Black "SAInt_666"]
[Result "1-0"]
[WhiteElo "2908"]
[BlackElo "2664"]
[TimeControl "180+1"]
[EndTime "15:02:54 PDT"]
[Termination "Hrant_ChessMood won by resignation"]

1. d4 {[%clk 0:03:00.9]} 1... Nf6 {[%clk 0:02:59.8]} 2. c4 {[%clk 0:03:01.4]}
2... e6 {[%clk 0:03:00.2]} 3. g3 {[%clk 0:03:00.5]} 3... d5 {[%clk 0:02:59.6]}
4. Bg2 {[%clk 0:03:00.6]} 4... Bb4+ {[%clk 0:02:55.4]} 5. Bd2 {[%clk 0:03:00.6]}
5... Be7 {[%clk 0:02:56.1]} 6. Nf3 {[%clk 0:03:00.6]} 6... O-O {[%clk
0:02:56.8]} 7. O-O {[%clk 0:03:00.7]} 7... Nbd7 {[%clk 0:02:57]} 8. Qb3 {[%clk
0:02:59.4]} 8... c6 {[%clk 0:02:47.2]} 9. Rc1 {[%clk 0:02:58.5]} 9... a5 {[%clk
0:02:43.2]} 10. a4 {[%clk 0:02:53.1]} 10... Ne4 {[%clk 0:02:41.1]} 11. Be1
{[%clk 0:02:48.4]} 11... f5 {[%clk 0:02:34.7]} 12. Nbd2 {[%clk 0:02:42.9]} 12...
g5 {[%clk 0:02:21.4]} 13. Qd1 {[%clk 0:02:27.6]} 13... Qe8 {[%clk 0:02:09.2]}
14. Nb3 {[%clk 0:02:26.4]} 14... Bd8 {[%clk 0:01:59.5]} 15. Ne5 {[%clk
0:02:11.3]} 15... Nxe5 {[%clk 0:01:36.4]} 16. dxe5 {[%clk 0:02:12.2]} 16... g4
{[%clk 0:01:24.7]} 17. Bd2 {[%clk 0:02:04.6]} 17... Qh5 {[%clk 0:01:15.7]} 18.
Bf4 {[%clk 0:02:02.3]} 18... Bg5 {[%clk 0:01:11.6]} 19. e3 {[%clk 0:02:01.1]}
19... Bxf4 {[%clk 0:00:57.5]} 20. exf4 {[%clk 0:02:01.1]} 20... Qg6 {[%clk
0:00:51.5]} 21. c5 {[%clk 0:02:01.2]} 21... Qg7 {[%clk 0:00:48.6]} 22. Nd4
{[%clk 0:01:59]} 22... h5 {[%clk 0:00:47.8]} 23. Qe1 {[%clk 0:01:58.5]} 23...
Bd7 {[%clk 0:00:41]} 24. b4 {[%clk 0:01:58.5]} 24... axb4 {[%clk 0:00:40.4]} 25.
Qxb4 {[%clk 0:01:59.4]} 25... Bc8 {[%clk 0:00:37.2]} 26. a5 {[%clk 0:01:59]}
26... Qc7 {[%clk 0:00:28.3]} 27. Qb6 {[%clk 0:01:54.4]} 27... Qxb6 {[%clk
0:00:19.7]} 28. cxb6 {[%clk 0:01:55.3]} 28... Bd7 {[%clk 0:00:20.3]} 29. Nb3
{[%clk 0:01:47.7]} 29... Rfc8 {[%clk 0:00:17.5]} 30. Bxe4 {[%clk 0:01:47.2]}
30... fxe4 {[%clk 0:00:16.4]} 31. Nc5 {[%clk 0:01:48.1]} 31... Rd8 {[%clk
0:00:08.8]} 32. Nxb7 {[%clk 0:01:47.8]} 32... Rdb8 {[%clk 0:00:09.4]} 33. Nc5
{[%clk 0:01:48]} 33... Bc8 {[%clk 0:00:09.8]} 34. Rcb1 {[%clk 0:01:47.3]} 34...
Kf7 {[%clk 0:00:09.7]} 35. a6 {[%clk 0:01:46.2]} 35... d4 {[%clk 0:00:09.1]} 36.
b7 {[%clk 0:01:44.2]} 1-0

[Event "Late-Titled-Tuesday-Blitz-September-19-2023"]
[Site "Chess.com"]
[Date "2023.09.19"]
[Round "6"]
[White "Mike24147"]
[Black "Tonychess32"]
[Result "0-1"]
[WhiteElo "2359"]
[BlackElo "2506"]
[TimeControl "180+1"]
[EndTime "15:02:55 PDT"]
[Termination "Tonychess32 won by resignation"]

1. e4 {[%clk 0:03:00.2]} 1... e6 {[%clk 0:03:00.5]} 2. d4 {[%clk 0:03:00.2]}
2... d5 {[%clk 0:03:01]} 3. Nc3 {[%clk 0:03:00.8]} 3... dxe4 {[%clk 0:03:01.7]}
4. Nxe4 {[%clk 0:03:01.2]} 4... Nd7 {[%clk 0:03:02.2]} 5. Nf3 {[%clk 0:03:00.1]}
5... Ngf6 {[%clk 0:03:02.5]} 6. Nxf6+ {[%clk 0:02:58.4]} 6... Nxf6 {[%clk
0:03:02.5]} 7. Bd3 {[%clk 0:02:59]} 7... Be7 {[%clk 0:03:02.7]} 8. O-O {[%clk
0:02:59.3]} 8... O-O {[%clk 0:03:02.9]} 9. Qe2 {[%clk 0:02:59.7]} 9... b6 {[%clk
0:03:03.2]} 10. Bg5 {[%clk 0:02:58.7]} 10... Bb7 {[%clk 0:03:03.4]} 11. c3
{[%clk 0:02:58.6]} 11... h6 {[%clk 0:03:02.1]} 12. Bh4 {[%clk 0:02:58.4]} 12...
c5 {[%clk 0:03:02.1]} 13. Rad1 {[%clk 0:02:58.1]} 13... cxd4 {[%clk 0:03:02.2]}
14. Nxd4 {[%clk 0:02:57.2]} 14... Qd5 {[%clk 0:03:00.7]} 15. f3 {[%clk 0:02:51]}
15... Rad8 {[%clk 0:02:50.7]} 16. Kh1 {[%clk 0:02:40.1]} 16... Qh5 {[%clk
0:02:45.2]} 17. Bg3 {[%clk 0:02:28.3]} 17... Bc5 {[%clk 0:02:14.3]} 18. Nb3
{[%clk 0:02:16.5]} 18... Be7 {[%clk 0:02:09]} 19. Rfe1 {[%clk 0:02:16.6]} 19...
Rfe8 {[%clk 0:01:56.2]} 20. Qf2 {[%clk 0:02:14.2]} 20... Bd5 {[%clk 0:01:37.4]}
21. Re5 {[%clk 0:02:13.1]} 21... g5 {[%clk 0:01:33]} 22. Ree1 {[%clk 0:01:53.2]}
22... Bc6 {[%clk 0:01:01.9]} 23. Nd4 {[%clk 0:01:50.7]} 23... Bb7 {[%clk
0:01:00.1]} 24. Bc7 {[%clk 0:01:46.9]} 24... Rd7 {[%clk 0:00:55.8]} 25. Be5
{[%clk 0:01:43]} 25... Red8 {[%clk 0:00:42.5]} 26. Bb5 {[%clk 0:01:35.8]} 26...
Rd5 {[%clk 0:00:41.2]} 27. c4 {[%clk 0:01:30.6]} 27... Rxe5 {[%clk 0:00:41.3]}
28. Rxe5 {[%clk 0:01:30.2]} 28... Bd6 {[%clk 0:00:41.8]} 29. g4 {[%clk 0:01:25]}
29... Nxg4 {[%clk 0:00:41.6]} 0-1

[Event "Late-Titled-Tuesday-Blitz-September-19-2023"]
[Site "Chess.com"]
[Date "2023.09.19"]
[Round "6"]
[White "farzadbfd"]
[Black "jefferyx"]
[Result "0-1"]
[WhiteElo "2691"]
[BlackElo "2996"]
[TimeControl "180+1"]
[EndTime "15:03:07 PDT"]
[Termination "jefferyx won on time"]

1. e4 {[%clk 0:02:30.7]} 1... e6 {[%clk 0:02:26.2]} 2. d4 {[%clk 0:02:30.5]}
2... d5 {[%clk 0:02:26.1]} 3. exd5 {[%clk 0:02:31.4]} 3... exd5 {[%clk
0:02:24.9]} 4. Nf3 {[%clk 0:02:32.3]} 4... Bd6 {[%clk 0:02:25.2]} 5. c4 {[%clk
0:02:31.9]} 5... Nf6 {[%clk 0:02:25.3]} 6. Bg5 {[%clk 0:02:26.1]} 6... h6 {[%clk
0:02:24.3]} 7. Bh4 {[%clk 0:02:25.6]} 7... O-O {[%clk 0:02:23.8]} 8. Be2 {[%clk
0:02:18.9]} 8... dxc4 {[%clk 0:02:22.7]} 9. O-O {[%clk 0:02:18.8]} 9... Nc6
{[%clk 0:02:21.6]} 10. Nbd2 {[%clk 0:01:50.7]} 10... g5 {[%clk 0:02:05.5]} 11.
Bg3 {[%clk 0:01:49.3]} 11... Bxg3 {[%clk 0:02:05.8]} 12. hxg3 {[%clk 0:01:37]}
12... Nxd4 {[%clk 0:02:05.8]} 13. Bxc4 {[%clk 0:01:35.9]} 13... Bg4 {[%clk
0:01:55.5]} 14. Qa4 {[%clk 0:01:29.7]} 14... Nxf3+ {[%clk 0:01:45.1]} 15. Nxf3
{[%clk 0:01:26.7]} 15... Bxf3 {[%clk 0:01:45.6]} 16. gxf3 {[%clk 0:01:27.5]}
16... c6 {[%clk 0:01:46.3]} 17. Qc2 {[%clk 0:01:20.2]} 17... Kg7 {[%clk
0:01:45.3]} 18. Kg2 {[%clk 0:01:20.3]} 18... Re8 {[%clk 0:01:40.9]} 19. a4
{[%clk 0:01:20.1]} 19... Qa5 {[%clk 0:01:40.7]} 20. Rh1 {[%clk 0:00:57.3]} 20...
Rad8 {[%clk 0:01:38.3]} 21. Bxf7 {[%clk 0:00:53.1]} 21... Kxf7 {[%clk
0:01:33.8]} 22. Rxh6 {[%clk 0:00:53.1]} 22... Rg8 {[%clk 0:01:31.7]} 23. Rah1
{[%clk 0:00:27.3]} 23... Qd5 {[%clk 0:01:21.2]} 24. Qc3 {[%clk 0:00:07.5]} 24...
Rd6 {[%clk 0:01:20]} 25. Qb4 {[%clk 0:00:06.8]} 25... b6 {[%clk 0:01:16.1]} 26.
Qc3 {[%clk 0:00:03.8]} 26... g4 {[%clk 0:01:15.8]} 0-1